[Event "FIDE WYCC Girls U14 2023"]
[Site "Montesilvano"]
[Date "2023.11.15"]
[Round "3.20"]
[White "Balazs, Szabina Zoe"]
[Black "Toth, Lili"]
[Result "1/2-1/2"]
[ECO "C55"]
[WhiteElo "1552"]
[BlackElo "2199"]
[Annotator "ChessBase"]
[PlyCount "106"]
[EventDate "2023.11.13"]
[EventType "swiss"]
[EventCountry "ITA"]
[SourceTitle "playchess.com"]
[Source "ChessBase"]
[SourceQuality "1"]
[TimeControl "40/5400+30:1800+30"]

1. e4 {[%emt 0:00:01]} e5 {[%emt 0:00:07]} 2. Nf3 {[%emt 0:00:05]} Nc6 {[%emt 0:00:07]} 3. Bc4 {[%emt 0:00:05]} Nf6 {[%emt 0:00:10]} 4. d3 {[%emt 0:00:07]} Be7 {[%emt 0:00:09]} 5. O-O {[%emt 0:00:19]} O-O {[%emt 0:00:10]} 6. a4 {[%emt 0:00:25]} d5 {[%emt 0:01:07]} 7. exd5 {[%emt 0:00:08]} Nxd5 {[%emt 0:00:08]} 8. Re1 {[%emt 0:00:47]} Bg4 {[%emt 0:02:55]} 9. Nbd2 {[%emt 0:02:34]} Kh8 {[%emt 0:08:44]} 10. h3 {[%emt 0:04:18]} Bh5 {[%emt 0:00:12]} 11. Nf1 {[%emt 0:11:20]} f6 {[%emt 0:19:51]} 12. Ng3 {[%emt 0:02:47]} Bf7 {[%emt 0:01:39]} 13. Nf5 {[%emt 0:03:58]} Qd7 {[%emt 0:02:44]} 14. Nxe7 {[%emt 0:03:03]} Ncxe7 {[%emt 0:00:24]} 15. d4 {[%emt 0:04:38]} exd4 {[%emt 0:14:41]} 16. Qxd4 {[%emt 0:01:33]} Rad8 {[%emt 0:03:24]} 17. b3 {[%emt 0:10:05]} Nc6 {[%emt 0:06:27]} 18. Qd1 {[%emt 0:02:23]} Qc8 {[%emt 0:10:44]} 19. Qe2 {[%emt 0:06:39]} Rfe8 {[%emt 0:05:34]} 20. Qf1 {[%emt 0:00:24]} Ncb4 {[%emt 0:00:26]} 21. c3 {[%emt 0:06:37]} Nc2 {[%emt 0:08:52]} 22. Rxe8+ {[%emt 0:00:20]} Bxe8 {[%emt 0:00:30]} 23. Ra2 {[%emt 0:00:10]} Bg6 {[%emt 0:02:28]} 24. Bd2 {[%emt 0:01:10]} Nb6 {[%emt 0:03:09]} 25. Be2 {[%emt 0:00:32]} Be4 {[%emt 0:01:07]} 26. Qc1 {[%emt 0:01:40]} Qe6 {[%emt 0:00:16]} 27. Rb2 {[%emt 0:00:38]} c5 {[%emt 0:02:45]} 28. Bd1 {[%emt 0:02:56]} Na3 {[%emt 0:00:18]} 29. Ra2 {[%emt 0:00:20]} Nb1 {[%emt 0:00:18]} 30. Be3 {[%emt 0:00:54]} Nd5 {[%emt 0:01:15]} 31. Bd2 {[%emt 0:02:09]} Nbxc3 {[%emt 0:02:10]} 32. Bxc3 {[%emt 0:01:09]} Nxc3 {[%emt 0:00:04]} 33. Rd2 {[%emt 0:00:11]} Rxd2 {[%emt 0:00:36]} 34. Qxd2 {[%emt 0:00:06]} Nxd1 {[%emt 0:00:38]} 35. Qxd1 {[%emt 0:00:05]} Qd5 {[%emt 0:00:17]} 36. Qxd5 {[%emt 0:00:54]} Bxd5 {[%emt 0:00:01]} 37. Nd2 {[%emt 0:00:09]} b6 {[%emt 0:00:26]} 38. f3 {[%emt 0:00:44]} Kg8 {[%emt 0:00:06]} 39. Kf2 {[%emt 0:00:04]} Kf7 {[%emt 0:00:12]} 40. Ke3 {[%emt 0:00:00]} Ke6 {[%emt 0:00:00]} 41. g4 {[%emt 0:01:12]} a6 {[%emt 0:04:05]} 42. h4 {[%emt 0:01:13]} h6 {[%emt 0:01:08]} 43. h5 {[%emt 0:02:57]} Kd6 {[%emt 0:05:14]} 44. Kf4 {[%emt 0:06:08]} b5 {[%emt 0:07:06]} 45. axb5 {[%emt 0:00:23]} axb5 {[%emt 0:00:05]} 46. Kf5 {[%emt 0:00:27]} c4 {[%emt 0:00:28]} 47. bxc4 {[%emt 0:01:51]} bxc4 {[%emt 0:01:28]} 48. Nxc4+ {[%emt 0:00:28]} Bxc4 {[%emt 0:00:02]} 49. Kg6 {[%emt 0:00:08]} Be2 {[%emt 0:04:20]} 50. Kxg7 {[%emt 0:00:08]} Ke7 {[%emt 0:04:36]} 51. Kxh6 {[%emt 0:00:09]} Bxf3 {[%emt 0:00:03]} 52. g5 {[%emt 0:00:10]} fxg5 {[%emt 0:02:03]} 53. Kxg5 {[%emt 0:00:08]} Bxh5 {[%emt 0:00:02]} 1/2-1/2

[Event "FIDE WYCC Girls U14 2023"]
[Site "Montesilvano"]
[Date "2023.11.15"]
[Round "3.21"]
[White "Zerarga, Imene"]
[Black "Stoll, Lucia"]
[Result "0-1"]
[ECO "C55"]
[WhiteElo "1514"]
[BlackElo "1887"]
[Annotator "NA"]
[PlyCount "64"]
[EventDate "2023.11.13"]
[EventType "swiss"]
[EventCountry "ITA"]
[SourceTitle "playchess.com"]
[Source "ChessBase"]
[SourceQuality "1"]
[TimeControl "40/5400+30:1800+30"]

1. e4 {[%emt 0:00:03]} e5 {[%emt 0:00:04]} 2. Nf3 {[%emt 0:00:06]} Nc6 {[%emt 0:00:06]} 3. Bc4 {[%emt 0:00:03]} Nf6 {[%emt 0:00:11]} 4. d3 {[%emt 0:00:06]} h6 {[%emt 0:00:16]} 5. O-O {[%emt 0:00:36]} d6 {[%emt 0:00:20]} 6. a4 {[%emt 0:01:25]} g5 {[%emt 0:01:37]} 7. c3 {[%emt 0:04:42]} Bg7 {[%emt 0:02:22]} 8. Re1 {[%emt 0:07:02]} O-O {[%emt 0:02:10]} 9. Na3 {[%emt 0:07:08]} Bg4 {[%emt 0:06:32]} 10. Nc2 {[%emt 0:04:33]} Ne7 {[%emt 0:04:29]} 11. Ne3 {[%emt 0:03:04]} Bh5 {[%emt 0:07:32]} 12. Nf1 {[%emt 0:10:46]} Ng6 {[%emt 0:09:52]} 13. Ng3 {[%emt 0:05:36]} Bg4 {[%emt 0:02:09]} 14. h3 {[%emt 0:02:09]} Bd7 {[%emt 0:09:22]} 15. d4 {[%emt 0:12:23]} a5 {[%emt 0:23:05]} 16. Qc2 {[%emt 0:11:48]} c6 {[%emt 0:02:36]} 17. Nf5 {[%emt 0:03:47]} d5 {[%emt 0:06:46]} 18. Nxg7 {[%emt 0:04:34]} Kxg7 {[%emt 0:01:04]} 19. exd5 {[%emt 0:00:08]} cxd5 {[%emt 0:02:41]} 20. dxe5 {[%emt 0:00:53]} dxc4 {[%emt 0:00:46]} 21. exf6+ {[%emt 0:00:09]} Qxf6 {[%emt 0:00:07]} 22. Be3 {[%emt 0:00:24]} Kg8 {[%emt 0:04:04]} 23. Qe2 {[%emt 0:02:51]} Rac8 {[%emt 0:03:53]} 24. Red1 {[%emt 0:02:35]} Bc6 {[%emt 0:01:32]} 25. Nd4 {[%emt 0:00:36]} Rfe8 {[%emt 0:01:00]} 26. Qf1 {[%emt 0:02:09]} Nh4 {[%emt 0:01:35]} 27. Nxc6 {[%emt 0:00:13]} Qxc6 {[%emt 0:00:27]} 28. Bd4 {[%emt 0:01:25]} Re2 {[%emt 0:01:10]} 29. Ra2 {[%emt 0:01:35]} Rce8 {[%emt 0:00:33]} 30. Be3 {[%emt 0:01:14]} R8xe3 {[%emt 0:00:17]} 31. fxe3 {[%emt 0:01:31]} Rxg2+ {[%emt 0:00:07]} 32. Kh1 {[%emt 0:00:06]} Rf2+ {[%emt 0:00:07]} 0-1

[Event "FIDE WYCC Girls U14 2023"]
[Site "Montesilvano"]
[Date "2023.11.15"]
[Round "3.22"]
[White "Rice, Leah"]
[Black "Negre, Emilie"]
[Result "0-1"]
[ECO "A45"]
[WhiteElo "1499"]
[BlackElo "1871"]
[Annotator "NA"]
[PlyCount "96"]
[EventDate "2023.11.13"]
[EventType "swiss"]
[EventCountry "ITA"]
[SourceTitle "playchess.com"]
[Source "ChessBase"]
[SourceQuality "1"]
[TimeControl "40/5400+30:1800+30"]

1. d4 {[%emt 0:00:02]} Nf6 {[%emt 0:00:06]} 2. Bf4 {[%emt 0:00:06]} c5 {[%emt 0:00:06]} 3. e3 {[%emt 0:00:06]} Qb6 {[%emt 0:00:31]} 4. Nc3 {[%emt 0:00:18]} d6 {[%emt 0:00:04]} 5. Nf3 {[%emt 0:02:03]} Qxb2 {[%emt 0:06:25]} 6. Nb5 {[%emt 0:00:07]} Qb4+ {[%emt 0:00:39]} 7. Qd2 {[%emt 0:00:08]} Qxd2+ {[%emt 0:05:54]} 8. Kxd2 {[%emt 0:00:05]} Na6 {[%emt 0:02:51]} 9. Nc3 {[%emt 0:01:45]} cxd4 {[%emt 0:07:57]} 10. exd4 {[%emt 0:01:29]} Nb4 {[%emt 0:04:07]} 11. Bb5+ {[%emt 0:00:41]} Bd7 {[%emt 0:01:50]} 12. Bxd7+ {[%emt 0:00:17]} Kxd7 {[%emt 0:00:34]} 13. Rab1 {[%emt 0:01:59]} Nbd5 {[%emt 0:03:00]} 14. Be3 {[%emt 0:06:44]} Nxc3 {[%emt 0:04:05]} 15. Kxc3 {[%emt 0:00:46]} b6 {[%emt 0:00:58]} 16. Kd3 {[%emt 0:01:28]} e6 {[%emt 0:04:19]} 17. c4 {[%emt 0:07:15]} Be7 {[%emt 0:03:35]} 18. a4 {[%emt 0:07:15]} Rhc8 {[%emt 0:06:55]} 19. Rb5 {[%emt 0:03:42]} d5 {[%emt 0:06:07]} 20. Ne5+ {[%emt 0:02:19]} Ke8 {[%emt 0:00:35]} 21. a5 {[%emt 0:06:17]} dxc4+ {[%emt 0:10:25]} 22. Nxc4 {[%emt 0:00:09]} bxa5 {[%emt 0:00:26]} 23. Rxa5 {[%emt 0:00:38]} Nd5 {[%emt 0:01:57]} 24. Bd2 {[%emt 0:04:49]} Bb4 {[%emt 0:10:58]} 25. Ra2 {[%emt 0:17:57]} Bxd2 {[%emt 0:02:44]} 26. Nd6+ {[%emt 0:00:13]} Kd7 {[%emt 0:03:45]} 27. Nxc8 {[%emt 0:00:21]} Nb4+ {[%emt 0:00:12]} 28. Kxd2 {[%emt 0:00:10]} Nxa2 {[%emt 0:00:10]} 29. Ra1 {[%emt 0:00:07]} Kxc8 {[%emt 0:00:57]} 30. Rxa2 {[%emt 0:00:06]} a5 {[%emt 0:00:11]} 31. Kc3 {[%emt 0:00:05]} Kc7 {[%emt 0:01:10]} 32. Kc4 {[%emt 0:01:16]} Kc6 {[%emt 0:00:11]} 33. Ra4 {[%emt 0:00:37]} Kb6 {[%emt 0:04:44]} 34. Kb3 {[%emt 0:01:11]} Kb5 {[%emt 0:02:06]} 35. Ra1 {[%emt 0:01:15]} Rc8 {[%emt 0:01:29]} 36. Rb1 {[%emt 0:00:51]} Rc4 {[%emt 0:00:57]} 37. Rd1 {[%emt 0:00:51]} a4+ {[%emt 0:00:18]} 38. Ka3 {[%emt 0:00:13]} Rc3+ {[%emt 0:00:07]} 39. Kb2 {[%emt 0:00:04]} Kc4 {[%emt 0:02:30]} 40. Rd2 {[%emt 0:00:00]} Rd3 {[%emt 0:00:00]} 41. Rc2+ {[%emt 0:02:12]} Kxd4 {[%emt 0:01:50]} 42. Ka2 {[%emt 0:00:08]} e5 {[%emt 0:01:10]} 43. f3 {[%emt 0:00:16]} f5 {[%emt 0:01:30]} 44. Re2 {[%emt 0:00:11]} e4 {[%emt 0:00:13]} 45. fxe4 {[%emt 0:00:03]} fxe4 {[%emt 0:00:13]} 46. g3 {[%emt 0:00:04]} e3 {[%emt 0:00:16]} 47. Ka1 {[%emt 0:00:02]} Rd2 {[%emt 0:00:10]} 48. Re1 {[%emt 0:00:05]} e2 {[%emt 0:00:09]} 0-1

[Event "FIDE WYCC Girls U14 2023"]
[Site "Montesilvano"]
[Date "2023.11.15"]
[Round "3.23"]
[White "Li Chen, Helena Joana"]
[Black "Manco, Amaliya"]
[Result "1-0"]
[ECO "C50"]
[WhiteElo "1799"]
[BlackElo "1538"]
[Annotator "NA"]
[PlyCount "77"]
[EventDate "2023.11.13"]
[EventType "swiss"]
[EventCountry "ITA"]
[SourceTitle "playchess.com"]
[Source "ChessBase"]
[SourceQuality "1"]
[TimeControl "40/5400+30:1800+30"]

1. e4 {[%emt 0:00:02]} e5 {[%emt 0:00:05]} 2. Nf3 {[%emt 0:00:03]} Nc6 {[%emt 0:00:08]} 3. Bc4 {[%emt 0:00:04]} Bc5 {[%emt 0:00:20]} 4. d3 {[%emt 0:00:06]} Nf6 {[%emt 0:00:20]} 5. c3 {[%emt 0:00:17]} O-O {[%emt 0:00:25]} 6. O-O {[%emt 0:01:03]} d6 {[%emt 0:00:41]} 7. h3 {[%emt 0:00:48]} a6 {[%emt 0:00:31]} 8. a4 {[%emt 0:00:05]} h6 {[%emt 0:00:16]} 9. Re1 {[%emt 0:00:05]} Kh8 {[%emt 0:00:48]} 10. Nbd2 {[%emt 0:04:50]} Nh7 {[%emt 0:02:28]} 11. Nb3 {[%emt 0:08:18]} Ba7 {[%emt 0:02:18]} 12. d4 {[%emt 0:02:11]} exd4 {[%emt 0:07:15]} 13. cxd4 {[%emt 0:00:55]} Ne7 {[%emt 0:10:17]} 14. d5 {[%emt 0:09:40]} Ng6 {[%emt 0:05:59]} 15. Be3 {[%emt 0:07:02]} Bxe3 {[%emt 0:04:16]} 16. Rxe3 {[%emt 0:02:01]} h5 {[%emt 0:08:07]} 17. Qd4 {[%emt 0:07:51]} h4 {[%emt 0:04:56]} 18. e5 {[%emt 0:04:20]} dxe5 {[%emt 0:04:30]} 19. Nxe5 {[%emt 0:00:11]} Qg5 {[%emt 0:10:15]} 20. Nxg6+ {[%emt 0:08:34]} fxg6 {[%emt 0:00:18]} 21. Rae1 {[%emt 0:00:55]} b6 {[%emt 0:06:16]} 22. Re7 {[%emt 0:05:44]} Nf6 {[%emt 0:05:48]} 23. f4 {[%emt 0:03:23]} Qh6 {[%emt 0:04:33]} 24. Rxc7 {[%emt 0:05:06]} Nh5 {[%emt 0:05:04]} 25. d6 {[%emt 0:04:08]} Nxf4 {[%emt 0:06:49]} 26. Ree7 {[%emt 0:02:17]} Nxh3+ {[%emt 0:03:59]} 27. gxh3 {[%emt 0:00:48]} Qg5+ {[%emt 0:03:24]} 28. Kh1 {[%emt 0:00:09]} Qf6 {[%emt 0:02:16]} 29. Qxf6 {[%emt 0:00:32]} Rxf6 {[%emt 0:00:06]} 30. Rxg7 {[%emt 0:00:05]} Be6 {[%emt 0:00:23]} 31. Bxe6 {[%emt 0:02:49]} Rxe6 {[%emt 0:00:03]} 32. Rh7+ {[%emt 0:01:53]} Kg8 {[%emt 0:00:04]} 33. Rcg7+ {[%emt 0:00:46]} Kf8 {[%emt 0:00:07]} 34. d7 {[%emt 0:00:23]} Rd8 {[%emt 0:01:48]} 35. Nd4 {[%emt 0:02:35]} Rd6 {[%emt 0:00:27]} 36. Nf3 {[%emt 0:00:20]} Rd3 {[%emt 0:01:48]} 37. Ne5 {[%emt 0:00:39]} Rd6 {[%emt 0:00:34]} 38. Nxg6+ {[%emt 0:00:57]} Rxg6 {[%emt 0:00:07]} 39. Rxg6 {[%emt 0:00:04]} 1-0

[Event "FIDE WYCC Girls U14 2023"]
[Site "Montesilvano"]
[Date "2023.11.15"]
[Round "3.24"]
[White "Gaszka, Zuzanna"]
[Black "Pereira Garza, Cecilia"]
[Result "1-0"]
[ECO "B90"]
[WhiteElo "1758"]
[BlackElo "1479"]
[Annotator "NA"]
[PlyCount "109"]
[EventDate "2023.11.13"]
[EventType "swiss"]
[EventCountry "ITA"]
[SourceTitle "playchess.com"]
[Source "ChessBase"]
[SourceQuality "1"]
[TimeControl "40/5400+30:1800+30"]

1. e4 {[%emt 0:00:01]} c5 {[%emt 0:00:06]} 2. Nf3 {[%emt 0:00:05]} d6 {[%emt 0:00:09]} 3. d4 {[%emt 0:00:04]} cxd4 {[%emt 0:00:09]} 4. Nxd4 {[%emt 0:00:03]} Nf6 {[%emt 0:00:09]} 5. Nc3 {[%emt 0:00:04]} a6 {[%emt 0:00:07]} 6. h3 {[%emt 0:00:07]} e5 {[%emt 0:01:11]} 7. Nb3 {[%emt 0:00:11]} Be7 {[%emt 0:00:39]} 8. Be3 {[%emt 0:00:31]} Be6 {[%emt 0:00:38]} 9. f4 {[%emt 0:00:31]} exf4 {[%emt 0:06:50]} 10. Bxf4 {[%emt 0:00:10]} Nbd7 {[%emt 0:00:41]} 11. Bxd6 {[%emt 0:04:24]} Qb6 {[%emt 0:01:22]} 12. Bxe7 {[%emt 0:01:12]} Qe3+ {[%emt 0:01:28]} 13. Qe2 {[%emt 0:00:33]} Qg3+ {[%emt 0:00:23]} 14. Qf2 {[%emt 0:00:57]} Qxf2+ {[%emt 0:00:15]} 15. Kxf2 {[%emt 0:00:04]} Kxe7 {[%emt 0:00:17]} 16. Bd3 {[%emt 0:01:48]} Rac8 {[%emt 0:02:26]} 17. Rad1 {[%emt 0:07:10]} Ne5 {[%emt 0:03:49]} 18. Nd4 {[%emt 0:02:25]} b5 {[%emt 0:02:24]} 19. a3 {[%emt 0:04:21]} g6 {[%emt 0:03:27]} 20. Nf3 {[%emt 0:09:14]} Nc4 {[%emt 0:05:13]} 21. Bxc4 {[%emt 0:02:20]} Bxc4 {[%emt 0:00:28]} 22. Rd4 {[%emt 0:01:48]} Rhd8 {[%emt 0:09:16]} 23. Rhd1 {[%emt 0:01:11]} h6 {[%emt 0:01:33]} 24. Ne5 {[%emt 0:00:48]} Rxd4 {[%emt 0:03:53]} 25. Rxd4 {[%emt 0:00:05]} Be6 {[%emt 0:00:15]} 26. Ke3 {[%emt 0:06:33]} Rc5 {[%emt 0:04:48]} 27. Nf3 {[%emt 0:02:29]} g5 {[%emt 0:06:20]} 28. Ne1 {[%emt 0:06:09]} g4 {[%emt 0:16:35]} 29. h4 {[%emt 0:01:25]} h5 {[%emt 0:01:03]} 30. Nd3 {[%emt 0:02:13]} Rc4 {[%emt 0:03:01]} 31. Nb4 {[%emt 0:03:38]} a5 {[%emt 0:06:01]} 32. Rxc4 {[%emt 0:00:31]} Bxc4 {[%emt 0:00:15]} 33. Nc6+ {[%emt 0:00:36]} Kd7 {[%emt 0:00:22]} 34. Nxa5 {[%emt 0:01:15]} Bf1 {[%emt 0:00:23]} 35. Kf2 {[%emt 0:00:05]} Bc4 {[%emt 0:00:32]} 36. Nxc4 {[%emt 0:00:05]} bxc4 {[%emt 0:00:11]} 37. Ke3 {[%emt 0:00:09]} Ne8 {[%emt 0:01:50]} 38. Nd5 {[%emt 0:00:09]} Ke6 {[%emt 0:00:32]} 39. Nf4+ {[%emt 0:00:11]} Ke5 {[%emt 0:00:48]} 40. Nxh5 {[%emt 0:00:00]} Nd6 {[%emt 0:00:00]} 41. Ng3 {[%emt 0:00:28]} Nb5 {[%emt 0:04:44]} 42. c3 {[%emt 0:00:37]} Nd6 {[%emt 0:00:27]} 43. h5 {[%emt 0:00:37]} Nb7 {[%emt 0:01:36]} 44. h6 {[%emt 0:00:27]} Kf6 {[%emt 0:00:07]} 45. Kd4 {[%emt 0:00:06]} Na5 {[%emt 0:00:39]} 46. Nf5 {[%emt 0:00:57]} Kg6 {[%emt 0:01:00]} 47. a4 {[%emt 0:00:35]} g3 {[%emt 0:00:59]} 48. Nxg3 {[%emt 0:00:09]} Kxh6 {[%emt 0:00:07]} 49. Nf5+ {[%emt 0:00:03]} Kg6 {[%emt 0:00:12]} 50. Nd6 {[%emt 0:00:14]} Kf6 {[%emt 0:00:39]} 51. Nxc4 {[%emt 0:00:05]} Nb3+ {[%emt 0:00:25]} 52. Ke3 {[%emt 0:00:10]} Ke6 {[%emt 0:00:34]} 53. a5 {[%emt 0:00:06]} Nc5 {[%emt 0:00:08]} 54. b4 {[%emt 0:00:04]} Na6 {[%emt 0:00:07]} 55. b5 {[%emt 0:00:05]} 1-0

[Event "FIDE WYCC Girls U14 2023"]
[Site "Montesilvano"]
[Date "2023.11.15"]
[Round "3.25"]
[White "Derlich, Sarah Sima"]
[Black "Aswinika Mani R"]
[Result "0-1"]
[ECO "B52"]
[WhiteElo "1745"]
[BlackElo "1472"]
[Annotator "NA"]
[PlyCount "86"]
[EventDate "2023.11.13"]
[EventType "swiss"]
[EventCountry "ITA"]
[SourceTitle "playchess.com"]
[Source "ChessBase"]
[SourceQuality "1"]
[TimeControl "40/5400+30:1800+30"]

1. e4 {[%emt 0:00:03]} c5 {[%emt 0:00:10]} 2. Nf3 {[%emt 0:00:06]} d6 {[%emt 0:00:03]} 3. Bb5+ {[%emt 0:00:08]} Bd7 {[%emt 0:00:09]} 4. Bxd7+ {[%emt 0:00:07]} Qxd7 {[%emt 0:00:04]} 5. c4 {[%emt 0:00:08]} Nf6 {[%emt 0:00:04]} 6. Nc3 {[%emt 0:00:06]} g6 {[%emt 0:00:05]} 7. d4 {[%emt 0:00:11]} cxd4 {[%emt 0:00:05]} 8. Nxd4 {[%emt 0:00:11]} Bg7 {[%emt 0:00:07]} 9. O-O {[%emt 0:00:51]} O-O {[%emt 0:02:39]} 10. f3 {[%emt 0:00:14]} Rc8 {[%emt 0:00:15]} 11. b3 {[%emt 0:00:42]} d5 {[%emt 0:00:44]} 12. e5 {[%emt 0:11:13]} Ne8 {[%emt 0:00:31]} 13. Nxd5 {[%emt 0:02:35]} e6 {[%emt 0:09:17]} 14. Nc3 {[%emt 0:04:45]} Bxe5 {[%emt 0:10:02]} 15. Nde2 {[%emt 0:01:53]} b5 {[%emt 0:06:57]} 16. Rb1 {[%emt 0:12:14]} bxc4 {[%emt 0:09:06]} 17. b4 {[%emt 0:00:30]} Qc7 {[%emt 0:01:55]} 18. f4 {[%emt 0:04:41]} Rd8 {[%emt 0:08:17]} 19. Qc2 {[%emt 0:01:10]} Bg7 {[%emt 0:05:23]} 20. Be3 {[%emt 0:03:00]} Nd6 {[%emt 0:05:27]} 21. Rfd1 {[%emt 0:03:21]} Nc6 {[%emt 0:00:54]} 22. b5 {[%emt 0:02:27]} Nf5 {[%emt 0:02:34]} 23. bxc6 {[%emt 0:06:03]} Nxe3 {[%emt 0:02:10]} 24. Rxd8+ {[%emt 0:00:07]} Rxd8 {[%emt 0:00:51]} 25. Qe4 {[%emt 0:00:16]} Nd5 {[%emt 0:06:48]} 26. Qxc4 {[%emt 0:04:09]} Nxc3 {[%emt 0:01:38]} 27. Nxc3 {[%emt 0:00:07]} Rc8 {[%emt 0:01:00]} 28. Rd1 {[%emt 0:01:32]} Qb6+ {[%emt 0:00:48]} 29. Kf1 {[%emt 0:02:38]} Rxc6 {[%emt 0:01:28]} 30. Rd8+ {[%emt 0:00:35]} Bf8 {[%emt 0:01:15]} 31. Qd3 {[%emt 0:02:43]} Rxc3 {[%emt 0:02:16]} 32. Rxf8+ {[%emt 0:00:15]} Kxf8 {[%emt 0:00:04]} 33. Qxc3 {[%emt 0:00:07]} Qb1+ {[%emt 0:01:13]} 34. Kf2 {[%emt 0:01:40]} Qxa2+ {[%emt 0:00:06]} 35. Kg3 {[%emt 0:00:07]} h5 {[%emt 0:07:38]} 36. Qb4+ {[%emt 0:03:50]} Kg8 {[%emt 0:01:32]} 37. Qb8+ {[%emt 0:00:38]} Kh7 {[%emt 0:00:14]} 38. Qc7 {[%emt 0:00:12]} Qb3+ {[%emt 0:02:01]} 39. Kh4 {[%emt 0:00:46]} e5 {[%emt 0:02:30]} 40. Qxe5 {[%emt 0:00:00]} Qe6 {[%emt 0:00:00]} 41. Qg5 {[%emt 0:09:22]} Qg4+ {[%emt 0:01:32]} 42. Qxg4 {[%emt 0:00:08]} hxg4 {[%emt 0:00:03]} 43. Kxg4 {[%emt 0:00:07]} a5 {[%emt 0:00:03]} 0-1

[Event "FIDE WYCC Girls U14 2023"]
[Site "Montesilvano"]
[Date "2023.11.15"]
[Round "3.26"]
[White "Mohd Afif, Ainul Mardhiah"]
[Black "Mueller, Riyanna"]
[Result "0-1"]
[ECO "D28"]
[WhiteElo "1478"]
[BlackElo "1754"]
[Annotator "NA"]
[PlyCount "79"]
[EventDate "2023.11.13"]
[EventType "swiss"]
[EventCountry "ITA"]
[SourceTitle "playchess.com"]
[Source "ChessBase"]
[SourceQuality "1"]
[TimeControl "40/5400+30:1800+30"]

1. d4 {[%emt 0:00:07]} d5 {[%emt 0:00:09]} 2. c4 {[%emt 0:00:05]} dxc4 {[%emt 0:00:32]} 3. Nf3 {[%emt 0:00:18]} Nf6 {[%emt 0:00:35]} 4. e3 {[%emt 0:00:14]} e6 {[%emt 0:00:44]} 5. Bxc4 {[%emt 0:00:12]} a6 {[%emt 0:00:32]} 6. O-O {[%emt 0:00:50]} c5 {[%emt 0:00:53]} 7. Qe2 {[%emt 0:05:42]} Nbd7 {[%emt 0:05:45]} 8. Rd1 {[%emt 0:01:49]} Be7 {[%emt 0:02:08]} 9. a4 {[%emt 0:03:01]} b6 {[%emt 0:01:28]} 10. Nc3 {[%emt 0:02:09]} O-O {[%emt 0:00:55]} 11. e4 {[%emt 0:06:00]} cxd4 {[%emt 0:05:49]} 12. Nxd4 {[%emt 0:01:12]} Qc7 {[%emt 0:03:17]} 13. Be3 {[%emt 0:06:16]} Bb7 {[%emt 0:02:15]} 14. Rac1 {[%emt 0:09:53]} Ne5 {[%emt 0:19:38]} 15. Ba2 {[%emt 0:10:15]} Neg4 {[%emt 0:01:53]} 16. g3 {[%emt 0:01:17]} Nxe3 {[%emt 0:02:22]} 17. Qxe3 {[%emt 0:02:51]} Bc5 {[%emt 0:02:53]} 18. b4 {[%emt 0:18:53]} Bxd4 {[%emt 0:00:11]} 19. Rxd4 {[%emt 0:01:25]} Rac8 {[%emt 0:02:55]} 20. f3 {[%emt 0:03:55]} Rfd8 {[%emt 0:17:10]} 21. Rxd8+ {[%emt 0:03:42]} Qxd8 {[%emt 0:00:33]} 22. Rd1 {[%emt 0:01:03]} Qc7 {[%emt 0:01:57]} 23. Ne2 {[%emt 0:02:50]} h5 {[%emt 0:06:58]} 24. Qd3 {[%emt 0:03:42]} Qc2 {[%emt 0:08:08]} 25. Bb3 {[%emt 0:01:21]} Qxd3 {[%emt 0:01:36]} 26. Rxd3 {[%emt 0:00:15]} Kf8 {[%emt 0:00:53]} 27. h4 {[%emt 0:01:46]} Ke7 {[%emt 0:00:52]} 28. Kf2 {[%emt 0:01:22]} Nd7 {[%emt 0:01:20]} 29. Rc3 {[%emt 0:03:18]} a5 {[%emt 0:05:31]} 30. Rxc8 {[%emt 0:01:41]} Bxc8 {[%emt 0:00:06]} 31. bxa5 {[%emt 0:00:20]} bxa5 {[%emt 0:00:23]} 32. Nd4 {[%emt 0:00:50]} Kd6 {[%emt 0:00:34]} 33. Bc2 {[%emt 0:01:56]} Kc5 {[%emt 0:01:21]} 34. Ke3 {[%emt 0:01:17]} Nb6 {[%emt 0:00:20]} 35. Kd3 {[%emt 0:04:37]} Bd7 {[%emt 0:00:20]} 36. Kc3 {[%emt 0:00:55]} Bxa4 {[%emt 0:00:46]} 37. Nb3+ {[%emt 0:00:58]} Bxb3 {[%emt 0:01:13]} 38. Bxb3 {[%emt 0:00:20]} Nc8 {[%emt 0:01:45]} 39. e5 {[%emt 0:00:46]} Na7 {[%emt 0:00:26]} 40. f4 0-1